bitfinex/quotes_BTCUSD_20241111
["timestamp","ask_amount","ask_price","bid_price","bid_amount"]
[1731304349111,0.0776,80810.0,80804.0,0.099004]
[1731304349287,0.0776,80810.0,80799.0,0.198022]
[1731304349487,0.0776,80810.0,80804.0,0.099004]
[1731304349687,0.099004,80805.0,80798.0,0.099012]
[1731304350008,0.099,80808.0,80797.0,0.18415641]
[1731304350209,0.099006,80803.0,80797.0,0.18415641]
[1731304350411,0.12594221,80803.0,80793.0,0.000842]
[1731304350788,0.12594221,80803.0,80797.0,0.198027]
[1731304350992,0.12594221,80803.0,80802.0,0.099007]
[1731304351395,0.0776,80810.0,80794.0,0.198032]
[1731304351770,0.0776,80810.0,80806.0,0.099002]
[1731304351949,0.0776,80810.0,80795.0,0.00247513]
[1731304352171,0.0776,80810.0,80793.0,0.000842]
[1731304352172,0.198005,80806.0,80793.0,0.000842]
[1731304352381,0.12594221,80806.0,80793.0,0.000842]
[1731304352794,0.148417,80794.0,80793.0,0.000842]
[1731304352996,0.27435921,80794.0,80793.0,0.000842]
[1731304353210,0.17534221,80794.0,80793.0,0.000842]
[1731304353625,0.27435921,80794.0,80793.0,0.000842]
[1731304354055,0.35155921,80794.0,80793.0,0.000842]
[1731304354919,0.25254221,80794.0,80793.0,0.000842]
[1731304355123,0.35155921,80794.0,80793.0,0.000842]
[1731304355539,0.37419274,80794.0,80793.0,0.000842]
[1731304355742,0.37419198,80794.0,80793.0,0.000842]
[1731304356562,0.41040442,80794.0,80793.0,0.000842]
[1731304356719,0.37419198,80794.0,80793.0,0.000842]
[1731304357514,0.14923277,80794.0,80793.0,0.000842]
[1731304357723,0.277212,80803.0,80794.0,0.099016]
[1731304357925,0.14860261,80802.0,80793.0,0.000842]
[1731304358113,0.0226604,80801.0,80793.0,0.000842]
[1731304358313,0.099011,80799.0,80793.0,0.000842]
[1731304358568,0.12594221,80800.0,80796.0,0.099013]
[1731304358705,0.12594221,80800.0,80793.0,0.000842]
[1731304358706,0.12594221,80800.0,80794.0,0.099017]
[1731304359576,0.12594221,80800.0,80793.0,0.000842]
[1731304359792,0.22495221,80800.0,80793.0,0.000842]
[1731304360165,0.099014,80797.0,80793.0,0.000842]
[1731304360397,0.12594221,80800.0,80793.0,0.000842]
[1731304360398,0.099017,80794.0,80793.0,0.000842]
[1731304360648,0.24764252,80794.0,80793.0,0.000842]
[1731304360847,0.28391713,80794.0,80793.0,0.000842]
[1731304361064,0.24764252,80794.0,80793.0,0.000842]
[1731304362117,0.14862552,80794.0,80793.0,0.000842]
[1731304362319,0.02268331,80794.0,80793.0,0.000842]
[1731304362750,0.00618377,80802.0,80793.0,0.000842]
[1731304362953,0.14862307,80801.0,80793.0,0.000842]
[1731304363156,0.099017,80794.0,80793.0,0.000842]
[1731304363570,0.22495921,80794.0,80793.0,0.000842]
[1731304363791,0.24763691,80794.0,80793.0,0.000842]
[1731304365566,0.24762758,80794.0,80793.0,0.000842]
[1731304365921,0.24762743,80794.0,80793.0,0.000842]
[1731304366273,0.37402743,80794.0,80793.0,0.000842]
[1731304366655,0.47902743,80794.0,80793.0,0.000842]
[1731304367080,0.099035,80779.0,80778.0,0.18415641]
[1731304367640,0.099044,80772.0,80763.0,0.099055]
[1731304367925,0.099047,80769.0,80759.0,0.099902]
[1731304368098,0.099047,80769.0,80760.0,0.099057]
[1731304368355,0.19809,80772.0,80759.0,0.000843]
[1731304368356,0.18614212,80763.0,80759.0,0.000843]
[1731304368513,0.099058,80760.0,80759.0,0.000843]
[1731304368707,0.22500021,80760.0,80759.0,0.000843]
[1731304369216,0.3962,80767.0,80759.0,0.000843]
[1731304369217,0.02264447,80761.0,80759.0,0.000843]
[1731304369401,0.1,80769.0,80759.0,0.000843]
[1731304369565,0.14857578,80768.0,80759.0,0.000843]
[1731304369772,0.099058,80760.0,80759.0,0.000843]
[1731304371133,0.09867233,80760.0,80759.0,0.000843]
[1731304372314,0.1981,80767.0,80759.0,0.000843]
[1731304372517,0.12594221,80767.0,80759.0,0.000843]
[1731304372770,0.099052,80766.0,80759.0,0.000843]
[1731304372984,0.12594221,80767.0,80759.0,0.000843]
[1731304373193,0.12594221,80767.0,80759.0,0.099902]
[1731304373369,0.12594221,80767.0,80759.0,0.000843]
[1731304373605,0.099054,80764.0,80759.0,0.000843]
[1731304373811,0.198103,80766.0,80759.0,0.000843]
[1731304374030,0.099058,80760.0,80759.0,0.000843]
[1731304374435,0.22500021,80760.0,80759.0,0.000843]
[1731304374816,0.35620021,80760.0,80759.0,0.000843]
[1731304375958,0.35620021,80760.0,80750.0,0.18415641]
[1731304375959,0.099069,80751.0,80750.0,0.18415641]
[1731304376147,0.12594221,80759.0,80738.0,0.18038735]
[1731304376517,0.12594221,80759.0,80740.0,0.099082]
[1731304376738,0.099072,80749.0,80741.0,0.099082]
[1731304376963,0.099074,80748.0,80739.0,0.099084]
[1731304377389,0.198122,80758.0,80724.0,0.18415641]
[1731304377390,0.099088,80736.0,80724.0,0.18415641]
[1731304377594,0.099088,80736.0,80733.0,0.18415641]
[1731304377768,0.12594221,80747.0,80733.0,0.18415641]
[1731304378089,0.099085,80738.0,80729.0,0.099096]
[1731304378224,0.099085,80738.0,80726.0,0.198201]
[1731304378225,0.198158,80744.0,80730.0,0.099095]
[1731304378426,0.099085,80739.0,80728.0,0.099097]
[1731304378635,0.099085,80739.0,80726.0,0.198201]
[1731304378886,0.099081,80742.0,80726.0,0.396402]
[1731304379052,0.099083,80740.0,80730.0,0.099095]
[1731304379288,0.099084,80739.0,80730.0,0.099095]
[1731304379477,0.12594221,80742.0,80731.0,0.099093]
[1731304379737,0.12594221,80742.0,80727.0,0.099099]
[1731304379898,0.198166,80740.0,80727.0,0.198198]
[1731304380060,0.099086,80738.0,80725.0,0.001402]
[1731304380267,0.099086,80738.0,80728.0,0.099097]
[1731304380724,0.198166,80740.0,80725.0,0.199604]
[1731304380725,0.099084,80740.0,80730.0,0.099095]
[1731304380931,0.099088,80736.0,80726.0,0.18415641]
[1731304381619,0.099084,80739.0,80726.0,0.18415641]
[1731304381842,0.0768,80741.0,80731.0,0.099094]
[1731304382009,0.0768,80741.0,80736.0,0.099087]
[1731304382211,0.1262,80751.0,80732.0,0.198185]
[1731304382490,0.1262,80751.0,80736.0,0.198176]
[1731304382491,0.12594221,80750.0,80736.0,0.198176]
[1731304382696,0.12594221,80750.0,80741.0,0.099081]
[1731304382900,0.12594221,80750.0,80739.0,0.099084]
[1731304383134,0.12594221,80750.0,80732.0,0.198185]
[1731304383332,0.12594221,80750.0,80736.0,0.18415641]
[1731304383512,0.198147,80748.0,80736.0,0.18415641]
[1731304383740,0.198132,80754.0,80744.0,0.005]
[1731304383866,0.099077,80745.0,80744.0,0.01]
[1731304384076,0.198137,80752.0,80744.0,0.005]
[1731304384501,0.198142,80750.0,80744.0,0.005]
[1731304384707,0.198137,80752.0,80744.0,0.005]
[1731304384894,0.099075,80747.0,80744.0,0.005]
[1731304385090,0.198137,80752.0,80744.0,0.005]
[1731304385288,0.12594221,80754.0,80744.0,0.005]
[1731304385580,0.099074,80748.0,80744.0,0.005]
[1731304385777,0.099077,80745.0,80744.0,0.005]
[1731304386809,0.198139,80751.0,80744.0,0.005]
[1731304386938,0.079,80753.0,80744.0,0.005]
[1731304387153,0.09907,80751.0,80744.0,0.109078]
[1731304387392,0.099071,80750.0,80745.0,0.099077]
[1731304387587,0.198139,80751.0,80744.0,0.005]
[1731304387793,0.198142,80750.0,80744.0,0.005]
[1731304387950,0.099076,80746.0,80744.0,0.01]
[1731304388153,0.198149,80748.0,80744.0,0.005]
[1731304388354,0.099076,80746.0,80744.0,0.01]
[1731304388578,0.079,80753.0,80744.0,0.01]
[1731304388805,0.099077,80745.0,80744.0,0.005]
[1731304389010,0.099073,80748.0,80744.0,0.005]
[1731304389443,0.198137,80752.0,80744.0,0.005]
[1731304389644,0.099076,80746.0,80744.0,0.005]
[1731304389846,0.099077,80745.0,80744.0,0.005]
[1731304390054,0.18415641,80752.0,80736.0,0.005]
[1731304390321,0.099084,80739.0,80738.0,0.005]
[1731304390649,0.297213,80750.0,80741.0,0.005]
[1731304390867,0.099081,80742.0,80741.0,0.005]
[1731304391871,0.099087,80737.0,80736.0,0.005]
[1731304392896,0.099088,80736.0,80735.0,0.0014]
[1731304393322,0.32503021,80736.0,80735.0,0.0014]
[1731304393523,0.34767331,80736.0,80735.0,0.0014]
[1731304394370,0.38391547,80736.0,80735.0,0.0014]
[1731304395633,0.38393896,80736.0,80735.0,0.0014]
[1731304397158,0.05890875,80736.0,80735.0,0.0014]
[1731304397375,0.05890875,80736.0,80735.0,0.0064]
[1731304397585,0.02265721,80736.0,80735.0,0.105489]
[1731304397983,0.02265721,80736.0,80735.0,0.0064]
[1731304398157,0.12174521,80736.0,80735.0,0.0014]
[1731304398357,0.15802336,80736.0,80735.0,0.0014]
[1731304398566,0.05893536,80736.0,80735.0,0.0014]
[1731304398923,0.15802336,80736.0,80735.0,0.0014]
[1731304399135,0.38396557,80736.0,80735.0,0.0014]
[1731304399362,0.51200918,80736.0,80735.0,0.0014]
[1731304399623,0.51076557,80736.0,80735.0,0.0014]
[1731304401414,0.47448742,80736.0,80735.0,0.0014]
[1731304401957,0.099106,80721.0,80720.0,0.00075]
[1731304402307,0.32371851,80721.0,80720.0,0.00075]
[1731304402747,0.3599856,80721.0,80720.0,0.00075]
[1731304402957,0.5089856,80721.0,80720.0,0.00075]
[1731304404873,0.50895522,80721.0,80720.0,0.00075]
[1731304405961,0.50895522,80721.0,80720.0,0.001592]
[1731304406116,0.50893171,80721.0,80720.0,0.001592]
[1731304406780,0.47304821,80721.0,80720.0,0.001592]
[1731304406995,0.65785924,80721.0,80720.0,0.001592]
[1731304407393,0.88792986,80721.0,80720.0,0.001592]
[1731304407641,0.099114,80715.0,80714.0,0.28383264]
[1731304407817,0.69628396,80715.0,80714.0,0.28383264]
[1731304408356,0.82222617,80715.0,80714.0,0.28383264]
[1731304408566,0.86451681,80715.0,80714.0,0.28383264]
[1731304408962,0.7385746,80715.0,80714.0,0.28383264]
[1731304409162,0.69628396,80715.0,80714.0,0.28383264]
[1731304409594,0.74063411,80715.0,80714.0,0.28383264]
[1731304409837,0.74055314,80715.0,80714.0,0.28151721]
[1731304410045,0.144431,80701.0,80700.0,0.00046233]
[1731304410265,0.220738,80695.0,80692.0,0.18415641]
[1731304410472,0.50772258,80695.0,80692.0,0.18415641]
[1731304410676,0.46929092,80695.0,80683.0,0.18555841]
[1731304410898,0.50546806,80695.0,80683.0,0.001402]
[1731304411128,0.46929092,80695.0,80683.0,0.001402]
[1731304411342,0.46929092,80695.0,80683.0,0.18555841]
[1731304411891,0.47707367,80695.0,80683.0,0.18555841]
[1731304412109,0.5772651,80695.0,80683.0,0.001402]
[1731304412562,0.61432752,80695.0,80683.0,0.001402]
[1731304412770,0.65050466,80695.0,80683.0,0.001402]
[1731304412984,0.65250466,80695.0,80683.0,0.001402]
[1731304413607,0.324549,80686.0,80683.0,0.001402]
[1731304413827,0.65946085,80686.0,80683.0,0.001402]
[1731304414494,0.47310192,80686.0,80683.0,0.001402]
[1731304414925,0.65946085,80686.0,80683.0,0.001402]
[1731304415277,0.65446085,80686.0,80683.0,0.001402]
[1731304415664,0.6708004,80686.0,80683.0,0.001402]
[1731304416073,0.65446085,80686.0,80683.0,0.001402]
[1731304416277,0.46810192,80686.0,80683.0,0.001402]
[1731304416516,0.44549121,80686.0,80683.0,0.001402]
[1731304416859,0.65438895,80686.0,80683.0,0.001402]
[1731304417060,0.65439391,80686.0,80683.0,0.001402]
[1731304417262,0.69185967,80686.0,80683.0,0.001402]
[1731304417835,0.65439391,80686.0,80683.0,0.001402]
[1731304419481,0.66231016,80686.0,80683.0,0.001402]
[1731304419697,0.69838715,80686.0,80683.0,0.001402]
[1731304420120,0.69839101,80686.0,80683.0,0.001402]
[1731304420914,0.200325,80676.0,80664.0,0.18415641]
[1731304421258,0.38553393,80665.0,80664.0,0.18415641]
[1731304421478,0.38553393,80665.0,80650.0,2.001]
[1731304421479,0.199192,80651.0,80650.0,2.001]
[1731304421694,0.22173993,80651.0,80650.0,2.001]
[1731304421869,0.25780711,80651.0,80650.0,2.001]
[1731304422537,0.48787773,80651.0,80650.0,2.001]
[1731304422739,0.45181055,80651.0,80650.0,2.001]
[1731304422942,0.48787773,80651.0,80650.0,2.001]
[1731304423232,0.45181055,80651.0,80650.0,2.001]
[1731304423448,0.45180112,80651.0,80650.0,2.001]
[1731304423741,0.57900112,80651.0,80650.0,2.001]
[1731304423934,0.57900112,80651.0,80639.0,0.001402]
[1731304423935,0.099206,80640.0,80639.0,0.001402]
[1731304424165,0.1217445,80640.0,80639.0,0.001402]
[1731304424295,0.2217445,80640.0,80639.0,0.001402]
[1731304424486,0.199206,80640.0,80639.0,0.001402]
[1731304426539,0.099206,80640.0,80639.0,0.001402]
[1731304427142,0.1,80641.0,80639.0,0.001402]
[1731304427378,0.200345,80668.0,80639.0,0.001402]
[1731304427379,0.12249976,80649.0,80639.0,0.001402]
[1731304427601,0.02249976,80648.0,80642.0,0.005]
[1731304427835,0.02249976,80647.0,80639.0,0.001402]
[1731304428025,0.099206,80640.0,80639.0,0.001402]
[1731304428205,0.22089976,80645.0,80639.0,0.001402]
[1731304428431,0.34684397,80644.0,80639.0,0.001402]
[1731304428595,0.099206,80640.0,80639.0,0.001402]
[1731304428807,0.12250893,80643.0,80627.0,0.17529791]
[1731304429008,0.09921,80637.0,80627.0,0.099222]
[1731304429191,0.099217,80632.0,80623.0,0.099226]
[1731304429738,0.12594221,80631.0,80620.0,0.099229]
[1731304429942,0.12594221,80631.0,80619.0,0.0778]
[1731304430295,0.099222,80628.0,80619.0,0.172031]
[1731304430511,0.12594221,80631.0,80619.0,0.0728]
[1731304430728,0.099225,80625.0,80619.0,0.0728]
[1731304431065,0.099223,80627.0,80619.0,0.0728]
[1731304431271,0.198442,80628.0,80619.0,0.172031]
[1731304431468,0.099227,80623.0,80617.0,0.0172954]
[1731304431891,0.198437,80630.0,80618.0,0.099232]
[1731304432071,0.099223,80627.0,80619.0,0.099231]
[1731304432288,0.198439,80629.0,80617.0,0.1165294]
[1731304432449,0.198442,80628.0,80617.0,0.0172954]
[1731304432653,0.099224,80626.0,80617.0,0.1165284]
[1731304432904,0.099224,80626.0,80618.0,0.099232]
[1731304433101,0.099224,80626.0,80617.0,0.0172954]
[1731304433102,0.12594221,80631.0,80617.0,0.1165294]
[1731304433324,0.12594221,80631.0,80617.0,0.0172954]
[1731304433476,0.099228,80623.0,80617.0,0.0172954]
[1731304433714,0.099233,80618.0,80617.0,0.0172954]
[1731304433916,0.22517521,80618.0,80617.0,0.0172954]
[1731304436349,0.12594221,80618.0,80617.0,0.0172954]
[1731304436965,0.22517521,80618.0,80617.0,0.0172954]
[1731304438181,0.12594221,80618.0,80617.0,0.0172954]
[1731304439151,0.22517521,80618.0,80617.0,0.0172954]
[1731304440032,0.49856402,80618.0,80617.0,0.0172954]
[1731304440255,0.52112187,80618.0,80617.0,0.0172954]
[1731304440394,0.47913306,80618.0,80617.0,0.0172954]
[1731304440603,0.48413306,80618.0,80617.0,0.0172954]
[1731304441391,0.48413306,80618.0,80604.0,0.001402]
[1731304441392,0.07754042,80605.0,80604.0,0.001402]
[1731304441537,0.20348263,80605.0,80604.0,0.001402]
[1731304441745,0.12594221,80605.0,80604.0,0.001402]
[1731304441951,0.198471,80616.0,80604.0,0.001402]
[1731304442110,0.09924,80613.0,80604.0,0.001402]
[1731304442305,0.12594221,80612.0,80604.0,0.001402]
[1731304442517,0.099243,80610.0,80604.0,0.001402]
[1731304442803,0.12594221,80610.0,80604.0,0.001402]
[1731304443152,0.12594221,80610.0,80607.0,0.099246]
[1731304443366,0.005,80628.0,80604.0,0.001402]
[1731304443367,0.005,80629.0,80605.0,0.023]
[1731304443560,0.18415641,80615.0,80608.0,0.023]
[1731304443778,0.31009862,80624.0,80609.0,0.198489]
[1731304443970,0.31009862,80624.0,80612.0,0.09924]
[1731304444145,0.31009862,80624.0,80610.0,0.198486]
[1731304444377,0.099208,80639.0,80624.0,0.099224]
[1731304444577,0.18415641,80632.0,80631.0,0.099217]
[1731304444882,0.18415641,80632.0,80616.0,0.18635893]
[1731304444883,0.12594221,80641.0,80640.0,0.099206]
[1731304445117,0.00186131,80642.0,80641.0,0.099205]
[1731304445278,0.00186131,80642.0,80632.0,0.104]
[1731304445495,0.00186131,80642.0,80634.0,0.198427]
[1731304445705,0.00186131,80642.0,80633.0,0.198429]
[1731304445706,0.00186131,80642.0,80639.0,0.099206]
[1731304445933,0.00186131,80642.0,80632.0,0.081]
[1731304445934,0.18415641,80640.0,80632.0,0.081]
[1731304446142,0.12594221,80639.0,80627.0,0.18415641]
[1731304446342,0.12594221,80639.0,80631.0,0.099216]
[1731304446549,0.12594221,80639.0,80627.0,0.099221]
[1731304446550,0.18415641,80638.0,80627.0,0.099221]
[1731304446828,0.12594221,80637.0,80623.0,0.099227]
[1731304447003,0.12594221,80637.0,80621.0,0.081]
[1731304447207,0.18415641,80641.0,80621.0,0.081]
[1731304447208,0.00186131,80642.0,80622.0,0.02548047]
[1731304447347,0.00186131,80642.0,80623.0,0.198454]
[1731304447596,0.18415641,80641.0,80640.0,0.099206]
[1731304448003,0.00186131,80642.0,80641.0,0.099205]
[1731304448858,0.00186131,80642.0,80638.0,0.099208]
[1731304449056,0.00186131,80642.0,80636.0,0.198422]
[1731304449057,0.00186131,80642.0,80636.0,0.09921]
[1731304449262,0.00186131,80642.0,80626.0,0.20715641]
[1731304449761,0.00186131,80642.0,80641.0,0.099205]
[1731304450623,0.00186131,80642.0,80641.0,0.122205]
[1731304450825,0.00186131,80642.0,80641.0,0.198805]
[1731304451943,0.00186131,80642.0,80640.0,0.099206]
[1731304452149,0.00186131,80642.0,80640.0,0.099205]
[1731304452352,0.00186131,80642.0,80641.0,0.099205]
[1731304452579,0.00186131,80642.0,80641.0,0.122205]
[1731304453468,0.00186131,80642.0,80641.0,0.127205]
[1731304453673,0.00354931,80642.0,80641.0,0.25314721]
[1731304453889,0.00354931,80642.0,80641.0,0.127205]
[1731304454091,0.00354931,80642.0,80641.0,0.25314721]
[1731304454300,0.00354931,80642.0,80641.0,0.30474721]
[1731304454501,0.00354931,80642.0,80641.0,0.122205]
[1731304455289,0.00354931,80642.0,80641.0,0.30856393]
[1731304455690,0.00354931,80642.0,80641.0,0.31356393]
[1731304455900,0.00354931,80642.0,80641.0,0.122205]
[1731304456094,0.00354931,80642.0,80641.0,0.31856393]
[1731304456298,0.00354931,80642.0,80641.0,0.31356393]
[1731304457167,0.00354931,80642.0,80641.0,0.30856393]
[1731304457693,0.001688,80642.0,80641.0,0.30856393]
[1731304458980,0.001688,80642.0,80641.0,0.43950614]
[1731304459314,0.001688,80642.0,80641.0,0.122205]
[1731304460422,0.001688,80642.0,80620.0,0.18635893]
[1731304460636,0.001688,80642.0,80620.0,0.28338641]
[1731304460637,0.12594221,80641.0,80620.0,0.28338641]
[1731304460834,0.198415,80639.0,80620.0,0.18415641]
[1731304461041,0.198437,80630.0,80621.0,0.18415641]
[1731304461249,0.099221,80628.0,80621.0,0.18415641]
[1731304461456,0.1488,80639.0,80606.0,0.18415641]
[1731304461457,0.198447,80626.0,80609.0,0.099244]
[1731304461669,0.198447,80626.0,80606.0,0.18415641]
[1731304461670,0.12594221,80625.0,80615.0,0.18415641]
[1731304461908,0.198452,80624.0,80606.0,0.18415641]
[1731304462121,0.19842,80637.0,80604.0,0.199901]
[1731304462122,0.27679727,80623.0,80605.0,0.18415641]
[1731304462271,0.099235,80617.0,80606.0,0.099247]
[1731304462482,0.099237,80615.0,80605.0,0.28340441]
[1731304462674,0.099237,80615.0,80604.0,0.001402]
[1731304462675,0.22594221,80623.0,80604.0,0.001402]
[1731304462932,0.198466,80618.0,80604.0,0.100651]
[1731304463129,0.099236,80616.0,80606.0,0.099247]
[1731304463360,0.38262041,80619.0,80604.0,0.001402]
[1731304463361,0.18415641,80607.0,80604.0,0.001402]
[1731304463573,0.12594221,80615.0,80604.0,0.001402]
[1731304464040,0.09924,80613.0,80604.0,0.001402]
[1731304464190,0.22518221,80612.0,80604.0,0.001402]
[1731304464597,0.18415641,80619.0,80606.0,0.198496]
[1731304464935,0.18415641,80618.0,80604.0,0.001402]
[1731304465067,0.18415641,80618.0,80614.0,0.099237]
[1731304465492,0.12594221,80619.0,80614.0,0.099237]
[1731304465781,0.005,80646.0,80610.0,0.18635893]
[1731304465995,0.18415641,80627.0,80611.0,0.02548076]
[1731304466185,0.18415641,80627.0,80617.0,0.099234]
[1731304466528,0.18415641,80627.0,80611.0,0.023]
[1731304466736,0.18415641,80627.0,80619.0,0.099232]
[1731304466942,0.18415641,80627.0,80617.0,0.099234]
[1731304467140,0.198422,80636.0,80616.0,0.198471]
[1731304467341,0.09922,80629.0,80611.0,0.023]
[1731304467562,0.09922,80629.0,80612.0,0.198481]
[1731304467789,0.09922,80629.0,80616.0,0.023]
[1731304467790,0.099223,80627.0,80616.0,0.023]
[1731304467967,0.099223,80627.0,80616.0,0.122235]
[1731304468206,0.07802524,80626.0,80616.0,0.122235]
[1731304468439,0.099227,80623.0,80603.0,0.19135893]
[1731304468664,0.12594221,80629.0,80620.0,0.09923]
[1731304468882,0.198442,80628.0,80611.0,0.099241]
[1731304469119,0.32438621,80627.0,80607.0,0.38264941]
[1731304469332,0.12594221,80627.0,80610.0,0.198486]
[1731304469551,0.099224,80626.0,80610.0,0.198486]
[1731304469759,0.12594221,80627.0,80620.0,0.09923]
[1731304470152,0.12594221,80627.0,80618.0,0.099233]
[1731304470401,0.099225,80625.0,80616.0,0.099235]
[1731304470599,0.099225,80625.0,80612.0,0.198479]
[1731304470600,0.32438821,80627.0,80612.0,0.198481]
[1731304470801,0.29767,80626.0,80615.0,0.099236]
[1731304470959,0.099225,80625.0,80616.0,0.099235]
[1731304471158,0.22516421,80627.0,80617.0,0.099233]
[1731304471361,0.1,80630.0,80613.0,0.023]
[1731304471569,0.31009862,80629.0,80613.0,0.023]
[1731304471968,0.31009862,80629.0,80615.0,0.198474]
[1731304472172,0.31009862,80629.0,80623.0,0.099226]
[1731304472395,0.31009862,80629.0,80621.0,0.099229]
[1731304472594,0.40931762,80629.0,80621.0,0.099229]
[1731304472797,0.04093176,80628.0,80615.0,0.099236]
[1731304473030,0.09923,80621.0,80611.0,0.099241]
[1731304473226,0.12594221,80627.0,80609.0,0.023844]
[1731304473437,0.099229,80622.0,80612.0,0.023]
[1731304473637,0.12594221,80627.0,80612.0,0.023]
[1731304473847,0.099227,80623.0,80611.0,0.023]
[1731304474088,0.15494734,80626.0,80614.0,0.099237]
[1731304474307,0.18415641,80620.0,80611.0,0.099241]
[1731304474514,0.12594221,80619.0,80611.0,0.099241]
[1731304474719,0.12594221,80619.0,80609.0,0.000844]
[1731304474720,0.198471,80617.0,80609.0,0.000844]
[1731304474923,0.099237,80615.0,80609.0,0.000844]
[1731304475142,0.28339941,80610.0,80609.0,0.000844]
[1731304475419,0.37208521,80610.0,80609.0,0.000844]
[1731304476886,0.46048521,80610.0,80609.0,0.000844]
[1731304477321,0.111249,80605.0,80600.0,0.00012852]
[1731304477517,0.60565014,80605.0,80600.0,0.00012852]
[1731304477732,0.60365014,80605.0,80600.0,0.00012852]
[1731304477975,0.62621012,80605.0,80600.0,0.00012852]
[1731304478219,0.289354,80601.0,80600.0,0.00012852]
[1731304478431,0.012,80600.0,80599.0,0.08908928]
[1731304478633,0.012,80600.0,80536.0,0.2186644]
[1731304478634,0.111272,80586.0,80575.0,0.18415641]
[1731304478837,0.52157314,80586.0,80575.0,0.18415641]
[1731304479054,0.53913312,80586.0,80575.0,0.18415641]
[1731304479276,0.67253312,80586.0,80557.0,0.18415641]
[1731304479493,0.72017412,80586.0,80557.0,0.18415641]
[1731304479704,0.72017412,80586.0,80558.0,0.100007]
[1731304479705,0.83209943,80586.0,80558.0,0.100007]
[1731304479912,0.83209943,80586.0,80558.0,0.000701]
[1731304480124,0.129278,80581.0,80558.0,0.18485741]
[1731304480339,0.129278,80581.0,80540.0,0.38281441]
[1731304480340,0.005,80544.0,80523.0,0.000702]
[1731304480574,0.005,80544.0,80530.0,0.18415641]
[1731304480575,0.20433,80539.0,80530.0,0.18415641]
[1731304480796,0.39068893,80539.0,80530.0,0.18415641]
[1731304481011,0.20933,80539.0,80523.0,0.000702]
[1731304481217,0.105,80539.0,80523.0,0.000702]
[1731304481423,0.20933,80539.0,80523.0,0.000702]
[1731304481604,0.23094221,80539.0,80526.0,0.099346]
[1731304481823,0.22594221,80539.0,80524.0,0.198697]
[1731304482175,0.23094221,80539.0,80524.0,0.198697]
[1731304482379,0.22594221,80539.0,80524.0,0.198697]
[1731304482585,0.22594221,80539.0,80530.0,0.198682]
[1731304482743,0.22594221,80539.0,80534.0,0.099336]
[1731304482943,0.22594221,80539.0,80529.0,0.198685]
[1731304483153,0.22594221,80539.0,80538.0,0.100032]
[1731304483571,0.12594221,80539.0,80538.0,0.100032]
[1731304483778,0.12594221,80539.0,80538.0,0.000701]
[1731304483779,0.13094221,80539.0,80538.0,0.000701]
[1731304484459,0.12594221,80539.0,80538.0,0.000701]
[1731304485006,0.22594221,80539.0,80538.0,0.000701]
[1731304487002,0.22594221,80539.0,80538.0,0.100032]
[1731304487285,0.12594221,80539.0,80538.0,0.100032]
[1731304488424,0.12594221,80539.0,80538.0,0.000701]
[1731304488867,0.12594221,80539.0,80538.0,0.100032]
[1731304489304,0.12594221,80539.0,80538.0,0.000701]
[1731304489500,0.22527221,80539.0,80538.0,0.000701]
[1731304489919,0.22594221,80539.0,80538.0,0.000701]
[1731304490066,0.32527221,80539.0,80538.0,0.000701]
[1731304490268,0.22594221,80539.0,80538.0,0.000701]
[1731304490668,0.12594221,80539.0,80538.0,0.000701]
[1731304491359,0.33527221,80539.0,80538.0,0.000701]
[1731304491559,0.33027221,80539.0,80538.0,0.000701]
[1731304491890,0.41527221,80539.0,80538.0,0.000701]
[1731304492543,0.43764722,80539.0,80538.0,0.000701]
[1731304493407,0.43764722,80539.0,80528.0,0.000702]
[1731304493408,0.204343,80529.0,80528.0,0.000702]
[1731304493625,0.33028521,80529.0,80528.0,0.000702]
[1731304494095,0.35265363,80529.0,80528.0,0.000702]
[1731304494320,0.39581651,80529.0,80528.0,0.000702]
[1731304494552,0.35265363,80529.0,80528.0,0.000702]
[1731304494721,0.35264795,80529.0,80528.0,0.000702]
[1731304495141,0.62588145,80529.0,80528.0,0.000702]
[1731304495557,0.66165719,80529.0,80528.0,0.000702]
[1731304496155,0.61849431,80529.0,80528.0,0.000702]
[1731304496307,0.6629558,80529.0,80528.0,0.000702]
[1731304496663,0.6649558,80529.0,80528.0,0.000702]
[1731304496890,0.78889801,80529.0,80528.0,0.000702]
[1731304497223,0.74443652,80529.0,80528.0,0.000702]
[1731304497430,0.79389801,80529.0,80528.0,0.000702]
[1731304497633,0.62349431,80529.0,80528.0,0.000702]
[1731304498042,0.61849215,80529.0,80528.0,0.000702]
[1731304498220,0.24830233,80529.0,80528.0,0.000702]
[1731304498428,0.24831148,80529.0,80528.0,0.000702]
[1731304498640,0.24831148,80529.0,80528.0,0.100046]
[1731304498641,0.14831148,80529.0,80528.0,0.100046]
[1731304498849,0.14830995,80529.0,80528.0,0.000702]
[1731304499051,0.12594221,80529.0,80528.0,0.100046]
[1731304499281,0.23007062,80549.0,80528.0,0.000702]
[1731304499496,0.18415641,80529.0,80528.0,0.000702]
[1731304499720,0.18415641,80542.0,80530.0,0.198682]
[1731304499920,0.18415641,80542.0,80528.0,0.000702]
[1731304500205,0.14832853,80541.0,80530.0,0.198683]
[1731304500408,0.005,80529.0,80528.0,0.000702]
[1731304500617,0.12672932,80529.0,80528.0,0.000702]
[1731304500896,0.25267153,80529.0,80528.0,0.000702]
[1731304501093,0.35267153,80529.0,80528.0,0.000702]
[1731304501295,0.28914597,80529.0,80528.0,0.000702]
[1731304501502,0.28414597,80529.0,80528.0,0.000702]
[1731304502149,0.14832853,80529.0,80528.0,0.000702]
[1731304502501,0.12594221,80529.0,80528.0,0.000702]
[1731304502734,0.14837549,80529.0,80528.0,0.100046]
[1731304503570,0.02243328,80529.0,80528.0,0.100046]
[1731304503866,0.03747884,80550.0,80528.0,0.100046]
[1731304503867,0.001688,80550.0,80529.0,0.005]
[1731304504105,0.18415641,80536.0,80529.0,0.005]
[1731304504252,0.18415641,80536.0,80528.0,0.000702]
[1731304504253,0.12594221,80535.0,80528.0,0.000702]